Cogmind - Beta 17.1 @@@ ROGUE MODE // 2026.09.13 @ 21:12:24 Player: UnderDoug Result: Destroyed by S-10 Pest with Light Assault Rifle Performance ------------- Evolutions (0) 0 Regions Visited (3) 600 Robots Destroyed (32) 160 Value Destroyed (887) 887 Prototype IDs (1) 20 Alien Tech Used (0) 0 Bonus (0) 0 TOTAL SCORE: 1667 Bonus ------- None Cogmind --------- Core Integrity 0/250 Matter 277/300 Energy 179/180 System Corruption 3% Temperature Cool (0) Movement Walking (190) Ox1 Location -10/Subcaves Parts ------- > --- POWER (1) -------- Meta Core > --- PROPULSION (2) --- Aluminum Leg (fused) Aluminum Leg > --- UTILITY (2+1) ---- Large Storage Unit Improved Terrain Scanner > --- WEAPON (2+1) ----- Light Assault Rifle (+) Makeshift Spear > --- INVENTORY (15) --- Improved Ion Engine Improved Ion Engine Improved Ion Engine Light Nuclear Core Light Treads Light Treads Compact Wheel Large Matter Pod (150) ECM Suite Spread Laser Spread Laser Mining Laser Peak State ------------ > --- POWER ------------ Meta Core > --- PROPULSION ------- Aluminum Leg Aluminum Leg Aluminum Leg > --- UTILITY ---------- Large Storage Unit Improved Terrain Scanner > --- WEAPON ----------- Light Assault Rifle Light Cannon Makeshift Spear > --- INVENTORY -------- Improved Ion Engine Improved Ion Engine Improved Ion Engine Light Nuclear Core Light Treads Light Treads Compact Wheel Large Matter Pod ECM Suite Spread Laser Spread Laser Mining Laser [Rating: 27] Favorites ----------- Power Light Ion Engine Engine Light Ion Engine Power Core Light Nuclear Core Propulsion Aluminum Leg Leg Aluminum Leg Utility Large Storage Unit Device Improved Terrain Scanner Storage Large Storage Unit Weapon Light Cannon Energy Gun Medium Laser Ballistic Gun Battle Rifle Ballistic Cannon Light Cannon Piercing Weapon Makeshift Spear Build | -11 -10 -10 -10 ------- Run | Yrd Mat Min Sub Slots Evolved . | . . . . Power . | . . . . Propulsion . | . . . . Utility . | . . . . Weapon . | . . . . Parts Attached 21 | 7 10 . 4 Power 4 | 1 2 . 1 Engine 2 | 1 1 . . Core 2 | . 1 . 1 Reactor . | . . . . Propulsion 5 | 2 2 . 1 Treads . | . . . . Leg 5 | 2 2 . 1 Wheel . | . . . . Hover . | . . . . Flight . | . . . . Utility 4 | 2 2 . . Device 2 | 1 1 . . Storage 2 | 1 1 . . Processor . | . . . . Hackware . | . . . . Protection . | . . . . Artifact . | . . . . Weapon 8 | 2 4 . 2 Energy Gun 2 | 1 1 . . Energy Cannon . | . . . . Ballistic Gun 3 | 1 1 . 1 Ballistic Cannon 2 | . 2 . . Launcher . | . . . . Special Weapon . | . . . . Impact Weapon . | . . . . Slashing Weapon . | . . . . Piercing Weapon 1 | . . . 1 Special Melee Weapon . | . . . . Unidentified Prototypes 1 | . . . 1 Parts Lost 9 | . 5 . 4 Power 1 | . 1 . . Propulsion 2 | . 1 . 1 Utility 1 | . 1 . . Weapon 5 | . 2 . 3 Highest Loss Streak 2 | . 1 . 2 To Critical Strikes . | . . . . Average Backups 12 | 5 11 15 14 Power 2 | . 2 3 3 Propulsion 3 | 3 3 4 3 Utility 1 | . 1 2 2 Weapon 4 | . 4 6 5 Tool/Special . | . . . . Unused Backups 16 | . 4 . 12 Power 3 | . . . 3 Propulsion 5 | . 2 . 3 Utility 3 | . 1 . 2 Weapon 5 | . 1 . 4 Tool/Special . | . . . . Average Slot Usage (%) 98 | . 99 100 96 Engine 6 | . 12 . . Core 7 | . 1 14 12 Leg 27 | . 27 28 28 Device 13 | . 13 14 12 Storage 13 | . 14 14 12 Energy Gun 4 | . 8 . . Ballistic Gun 11 | . 9 14 14 Ballistic Cannon 11 | . 10 14 12 Peak Build Rating 27 | 8 14 14 27 Average Rating 11 | 6 9 14 17 On Entrance 9 | . 8 14 14 Avg Prop Armor Cover (%) . | . . . . Naked Turns . | . . . . Heaviest Build 33 | 13 31 31 33 Greatest Support 30 | 20 20 20 30 Greatest Overweight (x) 3 | 3 2 1 1 Average Overweight (x) . | . . 1 1 Largest Inventory Capacity 15 | 8 15 15 15 Average Capacity 13 | 7 12 15 15 Most Carried 15 | 8 15 15 15 Average Carried 12 | 5 11 15 14 Final Capacity 15 | 8 15 15 15 Final Carried 15 | 8 15 15 12 Class Distribution -------------------- 96% | Mutant 3% | Skirmisher Dominant Class ---------------- Mutant | -10/Materials Mutant | -10/Mines Mutant | -10/Subcaves Resources | -11 -10 -10 -10 ----------- Run | Yrd Mat Min Sub Matter Collected 1117 | 306 584 7 220 Remotely . | . . . . Salvage Created 966 | 170 584 . 212 Parts 50 | 11 27 . 12 Haulers Intercepted . | . . . . Recyclers Shooed 1 | 1 . . . Parts Field Recycled . | . . . . Retrieved Matter . | . . . . Parts Self-Destructed 11 | . . . 11 Prevented . | . . . . Parts Restored . | . . . . Kills | -11 -10 -10 -10 ------- Run | Yrd Mat Min Sub Combat Hostiles Destroyed 25 | . 19 . 6 Guns 11 | . 7 . 4 Cannons 14 | . 12 . 2 Classes Destroyed 7 | 2 4 . 1 Tunneler 4 | 4 . . . Recycler 1 | 1 . . . Watcher 2 | . 2 . . Swarmer 6 | . 6 . . Grunt 11 | . 10 . 1 Sentry 1 | . . . 1 Subdweller 7 | . 3 . 4 Best Kill Streak 3 | 2 3 . 2 Combat Bots Only 3 | . 3 . 2 Max Kills in Single Turn 1 | 1 1 . 1 Gunslinging . | . . . . Exploded . | . . . . Melee . | . . . . Uniques/NPCs Destroyed . | . . . . Combat | -11 -10 -10 -10 -------- Run | Yrd Mat Min Sub Hostile Shots Fired 152 | . 77 . 75 Missed 39 | . 17 . 22 Hits 113 | . 60 . 53 Projectile 113 | . 60 . 53 Critical Strikes 2 | . 1 . 1 Damage Taken 1545 | . 811 . 734 Core 258 | . 163 . 95 Absorbed by Shields . | . . . . Regen/Repaired (Parts) 79 | . 79 . . Core Remaining (%) 100 | 100 . . . Volleys Fired 108 | 12 68 1 27 Largest 3 | 2 2 2 3 Hottest 95 | 70 95 55 75 Shots Fired 217 | 24 136 2 55 Gun 147 | 24 92 1 30 Cannon 70 | . 44 1 25 Launcher . | . . . . Special . | . . . . Kinetic 142 | 12 73 2 55 Thermal 75 | 12 63 . . Explosive . | . . . . Electromagnetic . | . . . . Robot Hit Streak 16 | 5 16 . 9 Robot Miss Streak 6 | 3 6 . 2 Penetration Max . | . . . . Secondary Targets . | . . . . Shots Hit Robots 143 | 15 88 . 40 Core Hits 57 | 6 41 . 10 Critical Kills . | . . . . Critical Parts Destroyed . | . . . . Critical Strikes 6 | . 5 . 1 Burn 4 | . 4 . . Destroy 1 | . . . 1 Blast 1 | . 1 . . Melee Attacks . | . . . . Impact . | . . . . Slashing . | . . . . Piercing . | . . . . Sneak Attacks . | . . . . Combat Hostiles . | . . . . Follow-up Attacks . | . . . . Damage Inflicted 2067 | 177 1280 4 606 Guns 1209 | 177 751 . 281 Cannons 845 | . 520 . 325 Explosions . | . . . . Melee . | . . . . Ramming 13 | . 9 4 . Kinetic 1482 | 66 810 . 606 Thermal 572 | 111 461 . . Explosive . | . . . . Electromagnetic . | . . . . Impact . | . . . . Slashing . | . . . . Piercing . | . . . . Highest Corruption 3 | . 3 3 3 Average Corruption 2 | . 2 3 3 Corruption Purged . | . . . . Corruption Blocked . | . . . . Effects 54 | . 34 6 14 Message Errors 12 | . 8 2 2 Matter Fused 13 | . 9 2 2 Heat Flow Errors 4 | . 2 1 1 Energy Discharges 9 | . 5 . 4 Parts Rejected 1 | . . . 1 Parts Fused 1 | . . . 1 Data Loss (minor) 9 | . 6 1 2 Misfires 2 | . 2 . . Alerts 2 | . 1 . 1 Weapon Failures 1 | . 1 . . Overload Shots . | . . . . Overflow Damage . | . . . . Projectiles . | . . . . Explosions . | . . . . Melee . | . . . . Knockbacks 14 | . 6 . 8 Impact . | . . . . Kinetic 13 | . 5 . 8 Secondary 1 | . 1 . . Self-Inflicted Damage . | . . . . Shots . | . . . . Rammed . | . . . . Targets Rammed 3 | . 1 2 . Kicked 3 | . 1 2 . Crushed . | . . . . Highest Temperature 266 | 54 184 266 106 Average Temperature 52 | 19 52 124 39 Received Heat Transfer 450 | . 312 . 138 Effects 1 | . . 1 . Energy Bleed 1 | . . 1 . Siege Activations . | . . . . Martial Activations . | . . . . Shielding Activations . | . . . . Robots Disrupted . | . . . . Combat Hostiles . | . . . . Robots Corrupted . | . . . . Combat Hostiles . | . . . . Parts Fried . | . . . . Impact Corruptions . | . . . . Robots Melted . | . . . . Combat Hostiles . | . . . . Parts Melted 4 | . 4 . . Heat Transferred 1915 | 333 1582 . . Parts Sabotaged . | . . . . Parts Stolen . | . . . . Parts Stripped . | . . . . Power Chain Reactions . | . . . . Alert | -11 -10 -10 -10 ------- Run | Yrd Mat Min Sub Maximum Alert Level . | . . . . Low Security (%) 100 | 100 100 100 . Level 1 . | . . . . Level 2 . | . . . . Level 3 . | . . . . Level 4 . | . . . . Level 5 . | . . . . High Security . | . . . . Max Security . | . . . . Peak Influence 119 | 5 119 2 . Initial 2 | . . 2 . Average 21 | 1 31 . . Influence Increases 573 | 25 463 . 85 Destroy 0b10 Robot/C 360 | . 320 . 40 Destroy 0b10 Robot/NC 35 | 25 10 . . Destroy Leader 74 | . 74 . . Successful Hack 8 | . 8 . . Disable Machine 15 | . 15 . . Destroy Structure 6 | . 6 . . Lose Combat Pursuer 75 | . 30 . 45 Influence Decreases 538 | 25 456 7 50 Entered New Map 5 | . . 5 . Time Decay 493 | 25 426 2 40 Lost Part 40 | . 30 . 10 Squads Dispatched 1 | . 1 . . Investigation . | . . . . Extermination . | . . . . Reinforcement 1 | . 1 . . Assault . | . . . . Garrison . | . . . . Intercept . | . . . . Searches Triggered . | . . . . Construction Impeded . | . . . . Haulers Reinforced . | . . . . Active Scanning Responses . | . . . . Cargo Convoy Interrupts . | . . . . Stealth | -11 -10 -10 -10 --------- Run | Yrd Mat Min Sub Distress Signals 2 | . 2 . . Communications Jammed . | . . . . Distress Signals . | . . . . Times Spotted 45 | . 33 . 12 Peak Tracking Total 6 | . 4 . 6 Tactical Retreats 3 | . 2 . 1 Traps | -11 -10 -10 -10 ------- Run | Yrd Mat Min Sub Traps Triggered 3 | . 3 . . Indirectly . | . . . . Trap Hack Attempts . | . . . . Triggered . | . . . . Disarmed . | . . . . Reprogrammed . | . . . . Reused . | . . . . Traps Extracted . | . . . . Installed . | . . . . Triggered . | . . . . Machines | -11 -10 -10 -10 ---------- Run | Yrd Mat Min Sub Machines Disabled 1 | . 1 . . Max in Single Turn 1 | . 1 . . Machines Repaired . | . . . . Machines Dismantled . | . . . . Machines Sabotaged . | . . . . Overloaded Fab Kills . | . . . . Hacking | -11 -10 -10 -10 --------- Run | Yrd Mat Min Sub Machines Accessed 5 | . 5 . . Terminals 4 | . 4 . . Fabricators . | . . . . Repair Stations 1 | . 1 . . Recycling Units . | . . . . Scanalyzers . | . . . . Garrison Access . | . . . . Total Hacks 12 | . 12 . . Successful 6 | . 6 . . Failed 6 | . 6 . . Catastrophic 1 | . 1 . . Database Lockouts . | . . . . Manual 8 | . 8 . . Terminals 8 | . 8 . . Fabricators . | . . . . Repair Stations 4 | . 4 . . Recycling Units . | . . . . Scanalyzers . | . . . . Garrison Access . | . . . . Terminal Hacks . | . . . . Fabricator Hacks . | . . . . Repair Station Hacks 2 | . 2 . . Scan Component 1 | . 1 . . Repair 1 | . 1 . . Recycling Unit Hacks . | . . . . Scanalyzer . | . . . . Garrison Access Hacks . | . . . . Unauthorized Hacks 4 | . 4 . . Terminals 4 | . 4 . . Skim 4 | . 4 . . Fabricators . | . . . . Repair Stations . | . . . . Recycling Units . | . . . . Scanalyzers . | . . . . Garrison Access . | . . . . Data Cores Recovered . | . . . . Used . | . . . . Hacking Detections 5 | . 5 . . Full Trace Events 1 | . 1 . . Feedback Events . | . . . . Feedback Blocked . | . . . . Robot Schematics Acquired . | . . . . Robots Built . | . . . . Authchips . | . . . . Time . | . . . . Total Robot Build Rating . | . . . . Part Schematics Acquired . | . . . . Parts Built . | . . . . Authchips . | . . . . Time . | . . . . Total Part Build Rating . | . . . . Part Studies Acquired . | . . . . Parts Repaired 1 | . 1 . . Time 26 | . 26 . . Parts Recycled . | . . . . Recycled Matter . | . . . . Retrieved Matter . | . . . . Retrieved Components . | . . . . Parts Scanalyzed . | . . . . Part Schematics Acquired . | . . . . Parts Damaged . | . . . . Bothacking | -11 -10 -10 -10 ------------ Run | Yrd Mat Min Sub Used RIF Installer . | . . . . Robots Hacked . | . . . . Non-combat . | . . . . Combat . | . . . . Robot Hacks Applied . | . . . . Relay Couplers Released . | . . . . Fabnet Peak Effective % . | . . . . Robots Rewired . | . . . . Allies Hacked . | . . . . Hacks Repelled . | . . . . Allies | -11 -10 -10 -10 -------- Run | Yrd Mat Min Sub Total Allies . | . . . . Largest Group . | . . . . Highest-Rated Group . | . . . . Highest-Rated Ally . | . . . . Total Orders . | . . . . Ally Attacks . | . . . . Total Damage . | . . . . Kills . | . . . . Allies Corrupted . | . . . . Allies Melted . | . . . . Intel | -11 -10 -10 -10 ------- Run | Yrd Mat Min Sub Active Infowar (turns) 3117 | 105 1670 624 718 Terrain 1586 | . 244 624 718 Seismic 1531 | 105 1426 . . Robot Analysis Total . | . . . . Derelict Logs Recovered 3 | . . 2 1 Drone Launches . | . . . . Drone Recoveries . | . . . . Exploration | -11 -10 -10 -10 ------------- Run | Yrd Mat Min Sub Turns Passed 3227 | 194 1691 624 718 Spaces Moved 1536 | 114 766 323 333 Core 10 | 10 . . . Treads . | . . . . Legs 1526 | 104 766 323 333 Wheels . | . . . . Hover . | . . . . Flight . | . . . . Fastest Speed 50 | 50 120 190 190 Average Speed 173 | 123 165 190 190 Slowest Speed 260 | 200 260 190 190 Overloaded Moves . | . . . . Propulsion Burnouts . | . . . . Robots Hopped . | . . . . Potential Cave-ins . | . . . . Cave-ins Triggered . | . . . . Exploration Rate (%) 52 | 5 98 77 28 Regions Visited 3 Branch Regions 2 Pre-discovered Areas . | . . . . Known Exits Taken . | . . . . Unknown Exits Taken 3 | 1 1 1 . Scrap Searched 4 | . . 1 3 Spaces Dug . | . . . . Terrain Destroyed . | . . . . Melee . | . . . . Projectile . | . . . . AOE . | . . . . Terrain Rammed . | . . . . Walls Destroyed . | . . . . Machines Disabled . | . . . . Actions | -11 -10 -10 -10 --------- Run | Yrd Mat Min Sub Total 1896 | 140 1056 330 370 Wait 191 | . 185 5 1 Move 1533 | 113 765 322 333 Hop . | . . . . Pick Up 26 | 8 16 . 2 Fast Attach 11 | 7 3 . 1 Attach 8 | . 4 . 4 Detach . | . . . . Swap 6 | . 5 . 1 Drop 10 | . 9 . 1 Fire 108 | 12 68 1 27 Melee . | . . . . Ram . | . . . . Kick 3 | . 1 2 . Crush . | . . . . Escape Stasis . | . . . . Rewire . | . . . . Trap . | . . . . Miscellaneous . | . . . . Route ------- -11/Scrapyard -10/Materials (discovered 5 exits: *Mat x3 / [*Min] / [*Sub]) -10/Mines (discovered 3 exits: *Mat / [*Exi] / [*Sub]) -10/Subcaves History --------- Turn | Location | Event 20 | -11/Scrapyard | Discovered new exit (range 16) 195 | -11/Scrapyard | Entered Materials 315 | -10/Materials | Build established: Mutant 514 | -10/Materials | Discovered new exit (range 11) 867 | -10/Materials | Discovered new exit (range 16) 895 | -10/Materials | Derelicts attacked the area 1008 | -10/Materials | Core integrity fell below 50% 1097 | -10/Materials | Discovered new exit (range 9) 1234 | -10/Materials | Repaired Aluminum Leg 1396 | -10/Materials | Discovered new exit (range 15) 1835 | -10/Materials | Discovered new exit (range 8) 1886 | -10/Materials | Entered Mines 1959 | -10/Mines | Deemed a non-threat by the Exiles lab entrance 1959 | -10/Mines | Discovered new exit (range 5) 2017 | -10/Mines | Identified exit to Materials 2177 | -10/Mines | Learned 4 Materials zone layouts 2427 | -10/Mines | Discovered new exit (range 13) 2455 | -10/Mines | Excavation squad dispatched 2455 | -10/Mines | A large section of the Mines collapsed 2510 | -10/Mines | Entered Subcaves 2567 | -10/Subcaves | Learned 2 Materials zone layouts 2921 | -10/Subcaves | A Subdweller sparked back to life 2958 | -10/Subcaves | Core integrity fell below 20% 2992 | -10/Subcaves | Found Prototype Power Core 3000 | -10/Subcaves | Identified Meta Core 3002 | -10/Subcaves | Attached Meta Core, gained temporary slots: Propulsion, Utility, Weapon 3228 | -10/Subcaves | Destroyed by S-10 Pest with Light Assault Rifle Last Messages --------------- 03017_ Acquired 56 matter. 03030_ Subatomizers dissect the Sub. Power Source. 03053_ Subatomizers dissect the Lgt. Ion Engine. 03079_ GJ-LBV(R): "WEHOME!" 03085_ System corrupted: Energy discharge (-41). 03099_ GJ-LBV(R) knocked back. 03103_ Battle Rifle destroyed. 03105_ GJ-LBV(R) knocked back. 03108_ System corrupted: Matter fused (-9). 03108_ GJ-LBV(R) destroyed. 03116_ Acquired 25 matter. 03118_ Acquired 3 matter. 03129_ Acquired 1 matter. 03217_ System corrupted: Aluminum Leg rejected. 03218_ Lgt. Cannon destroyed. 03225_ Acquired Aluminum Leg. 03225_ Aluminum Leg destroyed. 03226_ Temporary Propulsion slot lost. 03227_ S-10 Pest destroyed. Map ----- +----------------------------------------------------+ | ?????????????????????????????????????????????????? | | ?????????????????????????????????????????????????? | | ?????????????????????????????????????????????????? | | ?????????????????????????????????????????????????? | | ?????????????????????????????????????????????????? | | ?????????????????????????????????????????????????? | | ?????????????????????????????????????????????????? | | ?????????????????????????????????????????????????? | | ?????????????????????????????????????????????????? | | ?????????????????????????????????????????????????? | | ?????????????????????????????????????????????????? | | ??????????????##?????????????????????????????????? | | ?????????????? #??### ??????????????????????????? | | ????????????" ## ??????????????????????????? | | ????????????? ???????????"??????????????? | | ?????????????" ???????????????????????????? | | ?????????????# ???????????????????????????? | | ??????????????# ????????????????????????????? | | ???????????????# #????????????????????????????? | | ????????#?????## #????????????????????????????? | | ??????????????## ###??????????????????????????? | | ?????????????## ####??????????#?????????????? | | ?????????????#"" #####????????????????????? | | ????????????## ##???????????????????? | | ?????#?????## #???????????????????? | | ????????????# @ #?????#?????????????? | | ????????????# #### #???????????????????? | | #?????####?## ### ###?## #???????????????????? | | ?????## #?# #### #?????[s #???????????????????? | | ?????# #?# ##?# #????ss #???????????????????? | | ?????# ### #?# #???= #???????????????????? | | ?????# ## ### ##???? ???????????????????? | | ?????# ######????? #??????????????????? | | ????## ##???????? #??????????????????? | | ??#?# ##????#?? ? ??????????????????? | | ????# ##???##????? ?????????????????? | | ????## ## #?#?# ##??? #???????????????? | | ?????# ## ####### #???? t "????????????????? | | ?????# #####?## #? ?? " "????????????????? | | ???#?# ###?## #?????"?"?????????????????? | | ?????# ### ####?????????????????????????? | | ?????# ######??????#????????????????? | | ?????# #????????????????????????? | | ?#??# ## #????????????????????????? | | ????####### ! #??#?#???????????????????? | | ???????#### ! #????????????????????????? | | ?#?????# ### ##???????????????????????? | | ?#???#?## ##?# ##??? ?#????????????????? | | ???#???## #?## #??????????????????????? | | ???????# ###?#"" #??????????????????????? | +----------------------------------------------------+ Best States ------------- Heat Dissipation 25 Energy Generation 17 Energy Capacity 180 Matter Stores 300 Matter Capacity 300 Sight Range 16 Terrain Scan Range 16 Terrain Scan Density 10 Evasion (%) 55 Item Schematics ----------------- None Robot Schematics ------------------ None Fabricated ------------ Nothing Repaired ---------- Aluminum Leg | 12% | -10/Materials Studied --------- None Alien Tech Used ----------------- None Achievements -------------- None Challenges ------------ None Game ------ Seed ImprinterTerrainLance Manual? 0 Play Time 00:28:49 Cumulative 21.7 hours Start 2026.09.13 @ 15:05:55 End 2026.09.13 @ 21:12:24 Sessions 9 Manual Loads 0 Difficulty Rogue Special Mode None Game No. 44 Rogue 44 Adventurer 0 Explorer 0 Win Type - Total 0 Types 0/0/0/0/0/0/0/0/0/0 Lore% 32 Gallery% 18 Achievement% 16 Wizard Run 0 Options --------- Layout 2 ASCII 0 Keyboard 0 Movement Mouse Keybinds 0 Fullscreen 2 Font 24/Smallcaps Map View 50x44 Zoom Use 0% Tactical HUD 1 Map Filters NONE Filters NONE Steam 1 RUN: 6214509b-edd0-423f-a06c-7db9ff2bc522